fUST/lending_fUST_20250427
["ID","MTS","AMOUNT","RATE_DAILY","PERIOD"]
[359090361,1745703038122,-500.0,0.00014411,2]
[359090362,1745703038131,-500.0,0.00014411,2]
[359090363,1745703038141,-500.0,0.00014411,2]
[359090364,1745703038151,-500.0,0.00014411,2]
[359090365,1745703038162,-50000.0,0.00014412,2]
[359090366,1745703038175,-5285.77016353,0.00014644,2]
[359090367,1745703038187,-281.8257478,0.00014744,2]
[359090368,1745703038196,-5285.77016353,0.00015201,2]
[359090370,1745703038206,-420.0,0.0001568,2]
[359090372,1745703038215,-367.0,0.00015749,2]
[359090374,1745703038224,-5285.77016353,0.00015759,2]
[359090376,1745703038234,-1179.81807569,0.00016,2]
[359090378,1745703038244,-250.0,0.00016072,2]
[359090380,1745703038253,-1534.07759908,0.000161,2]
[359090382,1745703038263,-1534.07759903,0.000161,2]
[359090384,1745703038273,-293.69093141,0.00016164,2]
[359090386,1745703038282,-5285.77016353,0.00016316,2]
[359090388,1745703038292,-180.03,0.00016428,3]
[359090390,1745703038301,-540.13,0.00016428,3]
[359090392,1745703038310,-200.0,0.00016438,2]
[359090394,1745703038320,-200.0,0.00016438,2]
[359090396,1745703038329,-200.0,0.00016438,2]
[359090398,1745703038339,-200.0,0.00016438,2]
[359090400,1745703038349,-200.0,0.00016438,2]
[359090402,1745703038359,-400.0,0.00016438,2]
[359090404,1745703038369,-500.0,0.00016438,2]
[359090405,1745703038378,-500.0,0.00016438,2]
[359090408,1745703038388,-500.0,0.00016438,2]
[359090409,1745703038398,-500.0,0.00016438,2]
[359090412,1745703038408,-400.0,0.00016438,2]
[359090413,1745703038418,-505.30431843,0.00016438,2]
[359090415,1745703038428,-399.0784713,0.00016438,2]
[359090417,1745703038438,-500.0,0.00016438,2]
[359090419,1745703038447,-400.0,0.00016438,2]
[359090421,1745703038458,-509.72264243,0.00016438,2]
[359090423,1745703038468,-505.18507414,0.00016438,2]
[359090425,1745703038477,-539.63015591,0.00016438,2]
[359090427,1745703038487,-500.0,0.00016438,2]
[359090429,1745703038497,-400.0,0.00016438,2]
[359090431,1745703038506,-400.0,0.00016438,2]
[359090433,1745703038516,-543.85,0.00016438,2]
[359090435,1745703038527,-525.87971591,0.00016438,2]
[359090437,1745703038538,-501.62148324,0.00016438,2]
[359090439,1745703038547,-504.13450546,0.00016438,2]
[359090441,1745703038557,-500.0,0.00016438,2]
[359090443,1745703038567,-400.0,0.00016438,2]
[359090445,1745703038577,-500.0,0.00016438,2]
[359090447,1745703038586,-500.0,0.00016438,2]
[359090449,1745703038596,-500.0,0.00016438,2]
[359090451,1745703038605,-500.0,0.00016438,2]
[359090453,1745703038615,-400.0,0.00016438,2]
[359090455,1745703038626,-400.0,0.00016438,2]
[359090457,1745703038635,-316.92,0.00016438,2]
[359090458,1745703038644,-506.67288113,0.00016438,2]
[359090460,1745703038654,-200.95080609,0.00016438,2]
[359090462,1745703038663,-400.0,0.00016438,2]
[359090463,1745703038673,-400.0,0.00016438,2]
[359090465,1745703038682,-400.0,0.00016438,2]
[359090467,1745703038692,-500.0,0.00016438,2]
[359090469,1745703038702,-500.0,0.00016438,2]
[359090471,1745703038711,-500.0,0.00016438,2]
[359090473,1745703038721,-500.0,0.00016438,2]
[359090475,1745703038731,-400.0,0.00016438,2]
[359090477,1745703038740,-500.0,0.00016438,2]
[359090479,1745703038749,-500.0,0.00016438,2]
[359090481,1745703038758,-500.0,0.00016438,2]
[359090483,1745703038768,-400.0,0.00016438,2]
[359090485,1745703038777,-500.0,0.00016438,2]
[359090487,1745703038786,-400.0,0.00016438,2]
[359090489,1745703038795,-500.0,0.00016438,2]
[359090491,1745703038805,-200.0,0.00016438,2]
[359090492,1745703038814,-400.0,0.00016438,2]
[359090494,1745703038824,-421.16,0.00016438,2]
[359090496,1745703038834,-400.0,0.00016438,2]
[359090498,1745703038843,-400.0,0.00016438,2]
[359090500,1745703038853,-400.0,0.00016438,2]
[359090502,1745703038862,-500.0,0.00016438,2]
[359090504,1745703038872,-500.0,0.00016438,2]
[359090506,1745703038882,-500.0,0.00016438,2]
[359090508,1745703038891,-204.80993198,0.00016438,2]
[359090510,1745703038901,-500.0,0.00016438,2]
[359090512,1745703038911,-400.0,0.00016438,2]
[359090514,1745703038921,-500.0,0.00016438,2]
[359090516,1745703038930,-400.0,0.00016438,2]
[359090518,1745703038939,-400.0,0.00016438,2]
[359090520,1745703038949,-517.30444048,0.00016438,2]
[359090522,1745703038958,-400.0,0.00016438,2]
[359090524,1745703038969,-500.0,0.00016438,2]
[359090526,1745703038979,-400.0,0.00016438,2]
[359090528,1745703038988,-400.0,0.00016438,2]
[359090529,1745703038997,-503.29216947,0.00016438,2]
[359090531,1745703039007,-400.0,0.00016438,2]
[359090533,1745703039016,-500.0,0.00016438,2]
[359090535,1745703039026,-503.14370427,0.00016438,2]
[359090537,1745703039035,-500.0,0.00016438,2]
[359090539,1745703039045,-400.0,0.00016438,2]
[359090541,1745703039055,-400.0,0.00016438,2]
[359090543,1745703039064,-500.0,0.00016438,2]
[359090544,1745703039073,-500.0,0.00016438,2]
[359090546,1745703039083,-500.0,0.00016438,2]
[359090548,1745703039092,-400.0,0.00016438,2]
[359090550,1745703039102,-417.55234371,0.00016438,2]
[359090552,1745703039111,-195.17968762,0.00016438,2]
[359090554,1745703039121,-500.0,0.00016438,2]
[359090556,1745703039131,-400.0,0.00016438,2]
[359090558,1745703039142,-400.0,0.00016438,2]
[359090560,1745703039151,-400.0,0.00016438,2]
[359090562,1745703039161,-400.0,0.00016438,2]
[359090564,1745703039170,-400.0,0.00016438,2]
[359090565,1745703039183,-217.10001475,0.00016438,2]
[359090567,1745703039193,-500.0,0.00016438,2]
[359090569,1745703039202,-500.0,0.00016438,2]
[359090571,1745703039212,-400.0,0.00016438,2]
[359090573,1745703039222,-500.0,0.00016438,2]
[359090575,1745703039231,-500.0,0.00016438,2]
[359090577,1745703039242,-400.0,0.00016438,2]
[359090579,1745703039252,-400.0,0.00016438,2]
[359090581,1745703039261,-400.0,0.00016438,2]
[359090583,1745703039271,-500.0,0.00016438,2]
[359090585,1745703039280,-372.76242901,0.00016438,2]
[359090588,1745703039292,-317.27692035,0.00016438,2]
[359090590,1745703039301,-500.0,0.00016438,2]
[359090592,1745703039311,-503.79091632,0.00016438,2]
[359090594,1745703039321,-400.0,0.00016438,2]
[359090596,1745703039330,-400.0,0.00016438,2]
[359090598,1745703039340,-901.5,0.00016438,2]
[359090599,1745703039349,-500.0,0.00016438,2]
[359090601,1745703039358,-500.0,0.00016438,2]
[359090603,1745703039368,-500.0,0.00016438,2]
[359090605,1745703039378,-500.0,0.00016438,2]
[359090607,1745703039388,-504.21,0.00016438,2]
[359090609,1745703039397,-400.0,0.00016438,2]
[359090611,1745703039407,-400.0,0.00016438,2]
[359090613,1745703039417,-500.0,0.00016438,2]
[359090616,1745703039427,-500.0,0.00016438,2]
[359090619,1745703039436,-400.0,0.00016438,2]
[359090621,1745703039446,-500.0,0.00016438,2]
[359090623,1745703039456,-447.58,0.00016438,2]
[359090625,1745703039466,-500.0,0.00016438,2]
[359090627,1745703039476,-500.0,0.00016438,2]
[359090629,1745703039486,-500.0,0.00016438,2]
[359090631,1745703039495,-478.97,0.00016438,2]
[359090632,1745703039505,-500.0,0.00016438,2]
[359090634,1745703039515,-500.87202832,0.00016438,2]
[359090636,1745703039525,-500.0,0.00016438,2]
[359090638,1745703039534,-500.0,0.00016438,2]
[359090640,1745703039545,-500.0,0.00016438,2]
[359090642,1745703039554,-400.0,0.00016438,2]
[359090644,1745703039564,-502.62516301,0.00016438,2]
[359090646,1745703039575,-500.0,0.00016438,2]
[359090648,1745703039585,-500.0,0.00016438,2]
[359090650,1745703039596,-500.0,0.00016438,2]
[359090651,1745703039606,-500.0,0.00016438,2]
[359090653,1745703039617,-500.0,0.00016438,2]
[359090655,1745703039629,-400.0,0.00016438,2]
[359090657,1745703039639,-500.0,0.00016438,2]
[359090659,1745703039648,-167.32404216,0.00016438,2]
[359090661,1745703039659,-500.0,0.00016438,2]
[359090663,1745703039669,-400.0,0.00016438,2]
[359090665,1745703039678,-500.0,0.00016438,2]
[359090667,1745703039689,-500.0,0.00016438,2]
[359090669,1745703039699,-500.0,0.00016438,2]
[359090671,1745703039709,-500.0,0.00016438,2]
[359090673,1745703039718,-500.0,0.00016438,2]
[359090674,1745703039728,-500.0,0.00016438,2]
[359090676,1745703039738,-400.0,0.00016438,2]
[359090678,1745703039747,-400.0,0.00016438,2]
[359090680,1745703039757,-500.0,0.00016438,2]
[359090682,1745703039766,-422.83560475,0.00016438,2]
[359090684,1745703039776,-500.0,0.00016438,2]
[359090686,1745703039786,-400.0,0.00016438,2]
[359090688,1745703039795,-400.0,0.00016438,2]
[359090690,1745703039805,-400.0,0.00016438,2]
[359090692,1745703039814,-500.0,0.00016438,2]
[359090694,1745703039823,-500.0,0.00016438,2]
[359090696,1745703039832,-400.0,0.00016438,2]
[359090698,1745703039842,-400.0,0.00016438,2]
[359090699,1745703039852,-500.0,0.00016438,2]
[359090701,1745703039863,-500.0,0.00016438,2]
[359090703,1745703039873,-500.0,0.00016438,2]
[359090705,1745703039883,-804.98,0.00016438,2]
[359090707,1745703039892,-500.0,0.00016438,2]
[359090709,1745703039902,-400.0,0.00016438,2]
[359090711,1745703039911,-413.03,0.00016438,2]
[359090713,1745703039921,-400.0,0.00016438,2]
[359090715,1745703039930,-559.15,0.00016438,2]
[359090717,1745703039940,-400.0,0.00016438,2]
[359090719,1745703039949,-400.0,0.00016438,2]
[359090721,1745703039959,-500.0,0.00016438,2]
[359090722,1745703039968,-400.0,0.00016438,2]
[359090724,1745703039978,-500.0,0.00016438,2]
[359090726,1745703039987,-500.0,0.00016438,2]
[359090728,1745703039998,-400.0,0.00016438,2]
[359090730,1745703040008,-400.0,0.00016438,2]
[359090732,1745703040018,-400.0,0.00016438,2]
[359090734,1745703040028,-400.0,0.00016438,2]
[359090736,1745703040037,-520.85142931,0.00016438,2]
[359090738,1745703040047,-500.0,0.00016438,2]
[359090740,1745703040057,-381.20722617,0.00016438,2]
[359090742,1745703040066,-400.0,0.00016438,2]
[359090744,1745703040078,-452.4,0.00016438,2]
[359090746,1745703040087,-400.0,0.00016438,2]
[359090748,1745703040097,-465.08,0.00016438,2]
[359090750,1745703040106,-400.0,0.00016438,2]
[359090752,1745703040117,-400.0,0.00016438,2]
[359090754,1745703040127,-548.88449254,0.00016438,2]
[359090756,1745703040137,-312.05971687,0.00016438,2]
[359090758,1745703040155,-187.94028313,0.00016438,2]
[359090760,1745703040165,-431.46,0.00016438,2]
[359090762,1745703040174,-400.0,0.00016438,2]
[359090764,1745703040187,-400.0,0.00016438,2]
[359090766,1745703040197,-500.0,0.00016438,2]
[359090768,1745703040206,-505.33011739,0.00016438,2]
[359090770,1745703040216,-500.0,0.00016438,2]
[359090772,1745703040226,-1118.65,0.00016438,2]
[359090774,1745703040236,-1226.42,0.00016438,2]
[359090776,1745703040245,-400.0,0.00016438,2]
[359090778,1745703040255,-503.07774411,0.00016438,2]
[359090780,1745703040264,-500.0,0.00016438,2]
[359090782,1745703040274,-500.0,0.00016438,2]
[359090784,1745703040283,-400.0,0.00016438,2]
[359090786,1745703040292,-400.0,0.00016438,2]
[359090788,1745703040301,-500.0,0.00016438,2]
[359090790,1745703040311,-500.0,0.00016438,2]
[359090791,1745703040320,-400.0,0.00016438,2]
[359090793,1745703040329,-400.0,0.00016438,2]
[359090795,1745703040340,-500.0,0.00016438,2]
[359090797,1745703040349,-400.0,0.00016438,2]
[359090799,1745703040358,-400.0,0.00016438,2]
[359090801,1745703040368,-400.0,0.00016438,2]
[359090803,1745703040378,-371.4452492,0.00016438,2]
[359090805,1745703040387,-400.0,0.00016438,2]
[359090807,1745703040396,-1156.24,0.00016438,2]
[359090809,1745703040406,-400.0,0.00016438,2]
[359090811,1745703040416,-400.0,0.00016438,2]
[359090813,1745703040426,-400.0,0.00016438,2]
[359090815,1745703040437,-400.0,0.00016438,2]
[359090817,1745703040446,-1450.33,0.00016438,2]
[359090819,1745703040456,-500.0,0.00016438,2]
[359090821,1745703040465,-600.8,0.00016438,2]
[359090823,1745703040475,-500.88233196,0.00016438,2]
[359090825,1745703040484,-400.0,0.00016438,2]
[359090827,1745703040494,-400.0,0.00016438,2]
[359090829,1745703040504,-400.0,0.00016438,2]
[359090831,1745703040513,-400.0,0.00016438,2]
[359090833,1745703040522,-699.23,0.00016438,2]
[359090835,1745703040536,-500.0,0.00016438,2]
[359090837,1745703040546,-413.26,0.00016438,2]
[359090839,1745703040556,-2041.14,0.00016438,2]
[359090841,1745703040566,-400.0,0.00016438,2]
[359090843,1745703040577,-500.0,0.00016438,2]
[359090845,1745703040586,-400.0,0.00016438,2]
[359090847,1745703040596,-500.0,0.00016438,2]
[359090849,1745703040607,-500.0,0.00016438,2]
[359090851,1745703040617,-468.11,0.00016438,2]
[359090853,1745703040626,-400.0,0.00016438,2]
[359090855,1745703040636,-400.0,0.00016438,2]
[359090857,1745703040647,-500.0,0.00016438,2]
[359090859,1745703040660,-400.0,0.00016438,2]
[359090861,1745703040670,-400.0,0.00016438,2]
[359090862,1745703040680,-400.0,0.00016438,2]
[359090864,1745703040689,-400.0,0.00016438,2]
[359090865,1745703040698,-400.0,0.00016438,2]
[359090867,1745703040707,-824.92,0.00016438,2]
[359090868,1745703040716,-467.68,0.00016438,2]
[359090870,1745703040727,-400.0,0.00016438,2]
[359090888,1745703040961,-400.0,0.00016438,2]
[359090890,1745703040975,-400.0,0.00016438,2]
[359090892,1745703040985,-500.0,0.00016438,2]
[359090893,1745703040994,-277.99723843,0.00016438,2]
[359090895,1745703041005,-400.0,0.00016438,2]
[359090897,1745703041015,-400.0,0.00016438,2]
[359090899,1745703041024,-2453.2,0.00016438,2]
[359090900,1745703041034,-400.0,0.00016438,2]
[359090902,1745703041043,-528.46195602,0.00016438,2]
[359090904,1745703041053,-1408.49,0.00016438,2]
[359090905,1745703041062,-400.0,0.00016438,2]
[359090907,1745703041071,-400.0,0.00016438,2]
[359090909,1745703041080,-500.0,0.00016438,2]
[359090910,1745703041090,-547.17,0.00016438,2]
[359090912,1745703041099,-480.49403536,0.00016438,2]
[359090914,1745703041109,-501.31780686,0.00016438,2]
[359090916,1745703041119,-1069.63,0.00016438,2]
[359090917,1745703041129,-400.0,0.00016438,2]
[359090919,1745703041138,-400.0,0.00016438,2]
[359090920,1745703041148,-400.0,0.00016438,2]
[359090922,1745703041157,-400.0,0.00016438,2]
[359090924,1745703041168,-400.0,0.00016438,2]
[359090925,1745703041178,-500.0,0.00016438,2]
[359090927,1745703041189,-400.0,0.00016438,2]
[359090929,1745703041199,-500.0,0.00016438,2]
[359090931,1745703041208,-500.0,0.00016438,2]
[359090933,1745703041218,-400.0,0.00016438,2]
[359090934,1745703041228,-528.48,0.00016438,2]
[359090936,1745703041239,-691.26,0.00016438,2]
[359090938,1745703041248,-1281.68,0.00016438,2]
[359090939,1745703041258,-500.0,0.00016438,2]
[359090941,1745703041267,-400.0,0.00016438,2]
[359090943,1745703041277,-400.0,0.00016438,2]
[359090945,1745703041286,-500.0,0.00016438,2]
[359090947,1745703041295,-1275.47,0.00016438,2]
[359090948,1745703041305,-400.0,0.00016438,2]
[359090950,1745703041314,-200.0,0.00016438,2]
[359090952,1745703041324,-400.0,0.00016438,2]
[359090954,1745703041333,-511.36,0.00016438,2]
[359090955,1745703041343,-400.0,0.00016438,2]
[359090957,1745703041352,-400.0,0.00016438,2]
[359090958,1745703041361,-500.0,0.00016438,2]
[359090960,1745703041373,-400.0,0.00016438,2]
[359090962,1745703041383,-577.9,0.00016438,2]
[359090964,1745703041392,-400.0,0.00016438,2]
[359090966,1745703041402,-1440.26,0.00016438,2]
[359090967,1745703041412,-484.51,0.00016438,2]
[359090969,1745703041422,-400.0,0.00016438,2]
[359090971,1745703041432,-400.0,0.00016438,2]
[359090973,1745703041442,-1276.91,0.00016438,2]
[359090974,1745703041451,-400.0,0.00016438,2]
[359090976,1745703041462,-400.0,0.00016438,2]
[359090978,1745703041471,-500.0,0.00016438,2]
[359090980,1745703041481,-405.72,0.00016438,2]
[359090981,1745703041491,-400.0,0.00016438,2]
[359090983,1745703041501,-500.0,0.00016438,2]
[359090985,1745703041511,-439.46,0.00016438,2]
[359090987,1745703041521,-500.0,0.00016438,2]
[359090988,1745703041531,-400.0,0.00016438,2]
[359090990,1745703041541,-400.0,0.00016438,2]
[359090992,1745703041550,-400.0,0.00016438,2]
[359090993,1745703041560,-400.0,0.00016438,2]
[359090994,1745703041570,-511.05978667,0.00016438,2]
[359090996,1745703041580,-595.96,0.00016438,2]
[359090998,1745703041590,-400.0,0.00016438,2]
[359090999,1745703041600,-400.0,0.00016438,2]
[359091001,1745703041610,-500.0,0.00016438,2]
[359091003,1745703041619,-501.05968978,0.00016438,2]
[359091004,1745703041629,-942.67,0.00016438,2]
[359091006,1745703041640,-500.0,0.00016438,2]
[359091007,1745703041649,-400.0,0.00016438,2]
[359091008,1745703041659,-400.0,0.00016438,2]
[359091009,1745703041669,-400.0,0.00016438,2]
[359091010,1745703041679,-400.0,0.00016438,2]
[359091011,1745703041690,-500.0,0.00016438,2]
[359091012,1745703041701,-628.90698989,0.00016438,2]
[359091013,1745703041711,-1408.24,0.00016438,2]
[359091014,1745703041721,-215.243263,0.00016438,2]
[359091015,1745703041730,-310.59678541,0.00016473,2]
[359091016,1745703041740,-500.0,0.00016473,2]
[359091017,1745703041750,-314.19083097,0.00016473,2]
[359091018,1745703041760,-500.0,0.00016473,2]
[359091019,1745703041770,-500.0,0.00016473,2]
[359091020,1745703041779,-500.0,0.00016473,2]
[359091021,1745703041789,-500.0,0.00016473,2]
[359091022,1745703041799,-504.31100951,0.00016473,2]
[359091023,1745703041809,-500.0,0.00016473,2]
[359091024,1745703041819,-502.37546466,0.00016473,2]
[359091025,1745703041829,-500.0,0.00016473,2]
[359091026,1745703041839,-500.0,0.00016473,2]
[359091027,1745703041848,-500.0,0.00016473,2]
[359091028,1745703041858,-500.0,0.00016473,2]
[359091029,1745703041868,-500.0,0.00016473,2]
[359091030,1745703041878,-500.0,0.00016473,2]
[359091031,1745703041887,-500.0,0.00016473,2]
[359091032,1745703041898,-500.0,0.00016473,2]
[359091033,1745703041907,-500.0,0.00016473,2]
[359091034,1745703041916,-500.0,0.00016473,2]
[359091035,1745703041926,-500.0,0.00016473,2]
[359091036,1745703041936,-500.0,0.00016473,2]
[359091037,1745703041946,-500.0,0.00016473,2]
[359091038,1745703041955,-500.0,0.00016473,2]
[359091039,1745703041964,-500.0,0.00016473,2]
[359091040,1745703041974,-500.0,0.00016473,2]
[359091041,1745703041984,-500.0,0.00016473,2]
[359091042,1745703041994,-294.91443954,0.00016473,2]
[359091043,1745703042003,-500.0,0.00016473,2]
[359091044,1745703042013,-227.94241653,0.00016473,2]
[359091045,1745703042023,-500.0,0.00016473,2]
[359091046,1745703042032,-500.0,0.00016473,2]
[359091047,1745703042042,-500.0,0.00016473,2]
[359091048,1745703042051,-412.67142178,0.00016473,2]
[359091049,1745703042061,-500.0,0.00016473,2]
[359091050,1745703042071,-306.07151977,0.00016492,2]
[359091051,1745703042081,-1534.07759903,0.00016624,2]
[359091052,1745703042091,-12573.79847128,0.00016712,3]
[359091053,1745703042101,-91238.06322037,0.00016712,2]
[359091054,1745703042111,-55392.54924208,0.00016712,3]
[359091055,1745703042121,-400.0,0.00016712,2]
[359091056,1745703042131,-400.0,0.00016712,2]
[359091057,1745703042141,-400.0,0.00016712,2]
[359091058,1745703042152,-400.0,0.00016712,2]
[359091059,1745703042162,-225.4408119,0.00016712,2]
[359091060,1745703042173,-400.0,0.00016712,2]
[359091061,1745703042186,-400.0,0.00016712,2]
[359091062,1745703042199,-202.3823,0.00016712,2]
[359091063,1745703042210,-400.0,0.00016712,2]
[359091064,1745703042221,-400.0,0.00016712,2]
[359091065,1745703042231,-400.0,0.00016712,2]
[359091066,1745703042241,-480.20013172,0.00016712,2]
[359091067,1745703042251,-400.0,0.00016712,2]
[359091069,1745703042262,-400.0,0.00016712,2]
[359091071,1745703042273,-421.16,0.00016712,2]
[359091072,1745703042283,-400.0,0.00016712,2]
[359091073,1745703042293,-400.0,0.00016712,2]
[359091074,1745703042303,-400.0,0.00016712,2]
[359091075,1745703042313,-300.0,0.00016712,2]
[359091076,1745703042323,-400.0,0.00016712,2]
[359091077,1745703042332,-400.0,0.00016712,2]
[359091078,1745703042343,-400.0,0.00016712,2]
[359091079,1745703042352,-300.0,0.00016712,2]
[359091081,1745703042362,-400.0,0.00016712,2]
[359091082,1745703042372,-400.0,0.00016712,2]
[359091083,1745703042382,-400.0,0.00016712,2]
[359091084,1745703042392,-400.0,0.00016712,2]
[359091085,1745703042402,-471.06674618,0.00016712,2]
[359091086,1745703042412,-400.0,0.00016712,2]
[359091087,1745703042423,-400.0,0.00016712,2]
[359091088,1745703042433,-400.0,0.00016712,2]
[359091090,1745703042443,-400.0,0.00016712,2]
[359091092,1745703042452,-400.0,0.00016712,2]
[359091094,1745703042461,-220.73410057,0.00016712,2]
[359091095,1745703042471,-400.0,0.00016712,2]
[359091096,1745703042481,-400.0,0.00016712,2]
[359091097,1745703042491,-400.0,0.00016712,2]
[359091098,1745703042501,-193.93519418,0.00016712,2]
[359091099,1745703042511,-400.0,0.00016712,2]
[359091100,1745703042522,-901.5,0.00016712,2]
[359091102,1745703042532,-504.21,0.00016712,2]
[359091103,1745703042543,-400.0,0.00016712,2]
[359091104,1745703042553,-400.0,0.00016712,2]
[359091105,1745703042563,-400.0,0.00016712,2]
[359091106,1745703042573,-447.58,0.00016712,2]
[359091107,1745703042582,-478.97,0.00016712,2]
[359091108,1745703042592,-400.0,0.00016712,2]
[359091109,1745703042602,-400.0,0.00016712,2]
[359091110,1745703042611,-400.0,0.00016712,2]
[359091111,1745703042621,-300.0,0.00016712,2]
[359091112,1745703042631,-400.0,0.00016712,2]
[359091113,1745703042641,-400.0,0.00016712,2]
[359091114,1745703042651,-400.0,0.00016712,2]
[359091115,1745703042660,-400.0,0.00016712,2]
[359091116,1745703042670,-400.0,0.00016712,2]
[359091117,1745703042680,-400.0,0.00016712,2]
[359091118,1745703042689,-804.98,0.00016712,2]
[359091119,1745703042698,-400.0,0.00016712,2]
[359091120,1745703042708,-413.03,0.00016712,2]
[359091121,1745703042717,-400.0,0.00016712,2]
[359091122,1745703042727,-559.15,0.00016712,2]
[359091123,1745703042737,-300.0,0.00016712,2]
[359091124,1745703042746,-311.0,0.00016712,2]
[359091125,1745703042757,-400.0,0.00016712,2]
[359091126,1745703042767,-300.0,0.00016712,2]
[359091127,1745703042777,-400.0,0.00016712,2]
[359091128,1745703042786,-400.0,0.00016712,2]
[359091129,1745703042796,-400.0,0.00016712,2]
[359091130,1745703042806,-452.4,0.00016712,2]
[359091131,1745703042816,-400.0,0.00016712,2]
[359091132,1745703042825,-400.0,0.00016712,2]
[359091133,1745703042835,-465.08,0.00016712,2]
[359091134,1745703042845,-400.0,0.00016712,2]
[359091135,1745703042854,-400.0,0.00016712,2]
[359091136,1745703042863,-431.46,0.00016712,2]
[359091137,1745703042873,-400.0,0.00016712,2]
[359091138,1745703042883,-400.0,0.00016712,2]
[359091139,1745703042892,-1118.65,0.00016712,2]
[359091140,1745703042902,-1226.42,0.00016712,2]
[359091141,1745703042912,-400.0,0.00016712,2]
[359091142,1745703042922,-400.0,0.00016712,2]
[359091143,1745703042931,-400.0,0.00016712,2]
[359091144,1745703042941,-400.0,0.00016712,2]
[359091145,1745703042951,-400.0,0.00016712,2]
[359091146,1745703042961,-400.0,0.00016712,2]
[359091147,1745703042970,-400.0,0.00016712,2]
[359091148,1745703042980,-400.0,0.00016712,2]
[359091149,1745703042990,-1156.24,0.00016712,2]
[359091150,1745703042999,-433.95362551,0.00016712,2]
[359091151,1745703043009,-400.0,0.00016712,2]
[359091152,1745703043018,-198.94399683,0.00016712,2]
[359091154,1745703043034,-237.96014728,0.00016712,2]
[359091156,1745703043044,-400.0,0.00016712,2]
[359091158,1745703043053,-383.57230472,0.00016712,2]
[359091159,1745703043065,-1066.75769528,0.00016712,2]
[359091160,1745703043075,-600.8,0.00016712,2]
[359091161,1745703043084,-334.76836253,0.00016712,2]
[359091162,1745703043094,-200.0,0.00016712,2]
[359091163,1745703043104,-400.0,0.00016712,2]
[359091164,1745703043114,-400.0,0.00016712,2]
[359091165,1745703043124,-699.23,0.00016712,2]
[359091166,1745703043134,-413.26,0.00016712,2]
[359091167,1745703043145,-2041.14,0.00016712,2]
[359091168,1745703043155,-400.0,0.00016712,2]
[359091169,1745703043165,-400.0,0.00016712,2]
[359091170,1745703043175,-468.11,0.00016712,2]
[359091171,1745703043186,-293.9299914,0.00016712,2]
[359091172,1745703043198,-106.0700086,0.00016712,2]
[359091173,1745703043208,-400.0,0.00016712,2]
[359091174,1745703043218,-400.0,0.00016712,2]
[359091175,1745703043228,-400.0,0.00016712,2]
[359091176,1745703043238,-400.0,0.00016712,2]
[359091177,1745703043247,-400.0,0.00016712,2]
[359091178,1745703043258,-400.0,0.00016712,2]
[359091179,1745703043268,-824.92,0.00016712,2]
[359091180,1745703043277,-467.68,0.00016712,2]